{"text_format":"1","workbook":"xlsx","n_sheets":3,"sheets":["Blad1","Toelichting","Hulp"],"not_rendered":{"charts":0,"images":10,"macros":1,"external_links":0,"defined_names":5,"comments":0,"pivot_tables":0},"unopened":[],"bounds":{"document_bytes":16777216,"sheet_cells":100000,"rows_first":2000,"rows_last":500,"rows_between":2000,"halvings":0,"cell_chars":16384,"cell_head_chars":4096},"cells_cut":0,"cells_raw":0,"read":"whole","date_system":"1900"}

{"sheet":"Blad1","index":0,"n_rows":4,"n_cols":11,"rows_kept":4,"cut":false,"hidden":false,"merged":[]}
[]
[null,false,null,"Project:","Automatisering van een (bouw)systeem",null,null,null,null,"Versie:","1.00"]
[null,null,null,"Onderdeel:","Woning Bouwblok generator"]
[null,null,null,"Datum:","2020-03-05",null,null,null,null,"Klik op het logo Vullings Advies"]

{"sheet":"Toelichting","index":1,"n_rows":110,"n_cols":12,"rows_kept":110,"cut":false,"hidden":false,"merged":[]}
[]
[null,null,null,"Project:",{"$f":"Project","v":"Automatisering van een (bouw)systeem"},null,null,null,null,"Versie:",null,{"$f":"Versie","v":"1.00"}]
[null,null,null,"Onderdeel:",{"$f":"Onderdeel","v":"Woning Bouwblok generator"}]
[null,null,null,"Datum:",{"$f":"Datum","v":"2020-03-05"}]
[]
[]
[]
[]
[null,"Woning Bouwblok Generator"]
[null,"Dit is een VBA-module die volledig is opgesteld voor een heel specifiek systeem: bouwblok van grondgebonden woningen."]
[null,"Met behulp van deze module is het mogelijk om met een paar klikken allerlei gegevens te genereren over de bouwblok van"]
[null,"grondgebonden woningen. Eenmaal de VBA-code opgesteld kan het heel snel afmetingen, gewichten, funderingsplannen, tekeningen"]
[null,"en berekeningen genereren. Allemaal gebaseerd op een systeem; bouwblok van grondgebonden woningen."]
[]
[null,"Het gaat hierbij om een voorbeeld waarin verschillende mogelijkheden en optie zijn opgenomen. Het gaat hierbij NIET om een"]
[null,"volledig werkend module. Enkele onderdelen zijn beperkt uitgewerkt, maar het geeft een perfect beeld van de mogelijkheden."]
[null,"Een dergelijke VBA module kan relatief eenvoudig snel en zelfstandig worden opgesteld en geeft iedereen de mogelijkheid om "]
[null,"snel resultaten te genereren. Het is niet moeilijk en het behoeft geen duur softwarebedrijf. Vergelijk het met het opstellen van een"]
[null,"rekensheet voor een specifieke berekening of analyse. "]
[]
[null,"Het gaat hierbij om een voorbeeld wat laat zien hoe je een relatief complex systeem een module kunt opstellen met tools die al"]
[null,"beschikbaar zijn. Het is niet noodzakelijk aanvullende software / licenties of wat dan ook aan te schaffen. Het enige dat nodig is zijn "]
[null,"één of meer enthousiaste mensen die al wat ervaring hebben met het bouwen van spreadsheets en mogelijk wat programmeren. "]
[null,"Indien dit laatste nog ontbreekt is dit snel te leren. De programmeerkennis voor het opstellen van dergelijke VBA-code is beperkt."]
[null,"Natuurlijk zal het met een beetje ervaring sneller gaan. Maar dit voorbeeld kan ook helpen. "]
[null,"De grote PLUS van het zelf leren / doen is dat de kennis bij jezelf blijft, binnen je bedrijf en dat het je eigendom is en blijft."]
[null,"Als je de kennis eenmaal hebt, kun je elk probleem / systeem oppakken. Het is niet nodig om speciale programmeurs in dienst te nemen."]
[null,"Het is niet nodig om dergelijke modules uit te besteden aan een duur softwarebedrijf."]
[null,"Als je de kennis eenmaal hebt, kun je elk probleem / systeem oppakken. En het blijft natuurlijk niet beperkt tot deze ene module."]
[]
[]
[]
[null,"Aan de slag - stel een bouwblok samen"]
[]
[null,"Kies een bloktype. Dit kan een woning zijn, een woning met een uitbouw, een garage of een erker zijn (zie pijl). Geeft dit blok"]
[null,"gewenste afmetingen. Er zijn ook default waarden in de code opgenomen. Als de afmetingen akkoord zijn klik op het vinkje en "]
[null,"het eerste onderdeel van het bouwblok is aanwezig. De preview laat direct het resultaat zien. Stel op deze manier een hele lijst"]
[null,"samen met alle blokken waaruit het bouwblok bestaat. Dit kunnen 10 gelijke woningen zijn, 2 onder één kap met garages. "]
[null,"Er zijn diverse mogelijkheden. De bouwblokken kunnen uit verschillende lagen bestaan, mogen verschillende afmetingen hebben"]
[null,"enz. Alle invoerwaarden kunnen verschillen per blok. "]
[null,"Het systeem dicteert hiier dat alle blokken aan elkaar vast zitten. Er zijn niet meer dan 4 bloktypen enz. Al deze eisen waren eisen"]
[null,"vanuit het gekozen bouwsysteem. Door al deze eisen op een goede manier te gebruiken kan de benodigde invoer er beperkt blijven."]
[null,"Door het gebruik van default waarden (per project, of opdrachtgever, of aannemer anders) kunnen heel snel verschillende varianten"]
[null,"worden gemaakt. Zo stel je heel snel een project van 250 woningen samen die uit allerlei verschillende blokken bestaan. "]
[]
[null,"Aanpassingen zijn ook direct mogelijk, per blok of voor alle blokken samen."]
[null,"Stel de beukbreedte van de woning moet geen 5,4 m zijn, maar 6,15 m. Dan is dit met een paar klikken gebeurd."]
[null,"Een blokje verwijderen, toevoegen (ook tussen bijvoorbeeld blokje 2 en 3) is heel eenvoudig. Er is optimaal gebruik gemaakt"]
[null,"van het systeem."]
[]
[null,"Meer uitleg is niet nodig. De rest gaat vanzelf…."]
[]
[null,"(Opmerking: De naam van Archiefbestanden moet beginnen met \"VA00\")"]
[]
[]
[]
[]
[]
[]
[]
[null,"Het bouwblok is gereed - en nu wordt het leuk"]
[]
[null,"Als de gegeven eenmaal in de module zijn opgenomen kan de module allerlei informatie samenstellen en genereren."]
[null,"Alle informatie kan geheel op eigen voorkeur worden samengesteld en worden weergegeven. Dit kan met getallen, "]
[null,"grafieken, tekeningen, enz."]
[]
[null,"In deze module zijn enkele voorbeelden gegeven van de beschikbare informatie en hoe deze kan worden weergegeven."]
[null,"1) Genereerd getallen, afmetingen van het bouwblok, inhoud, maximale breedte, hoogte, enz. Dit kan per blok, een selectie"]
[null,"     van blokken of het gehele bouwblok. Hier is de totale lengte van de funderingsbalken bepaald. Inclusief inhoud en gewicht."]
[]
[null,"2) Een andere optie is het genereren van een gewichts- en stabiliteitsberekening. De verschillende belastingen (vloeren, wanden enz.)"]
[null,"     zijn opgenomen in default waarden. Deze kan de gebruiker naar wens aanpassen. Er zijn een paar spelregels, de systeemeisen."]
[null,"     Per blok of het geheel worden alle belastingen direct gegenereerd. De volgende stap is een volledige rapportage in Word."]
[]
[null,"3) Export van gegevens is ook mogelijk in allerlei formaten. Bepaal wat nodig is voor het systeem, gebruikers, klanten en/of "]
[null,"     opdrachtgevers en neem het in de module op. Als het eenmaal onderdeel is van de module kan elk willekeurige project worden"]
[null,"     omgezet in het gewenste bestand, gewenste formaat. In deze voorbeeld module zijn verschillende tekst-bestanden opgenomen."]
[null,"     Hiermee is eenvoudig uitwisseling mogelijk tussen verschillende software pakketten, zoals teken- en rekensoftware."]
[null,"     Bijvoorbeeld een tekening van het balkenroosten (fundering) van het bouwblok in Autocad (dxf-formaat)."]
[null,"     Bijvoorbeeld invoerfile voor rekensoftware voor de dimensionering van de paalfundering (zoals XML)."]
[null,"     De gegevens kunnen natuurlijk ook in Excel worden verwerkt, zodat er in Excel verdere aanvullende bewerkingen mogelijk zijn."]
[null,"     Zoals aangegeven is een directe aansturing van Word ook mogelijk, dit geldt voor heel veel applicaties van Microsoft."]
[null,"     In de module is de optie opgenomen om direct vanuit de module een Email (Outlook) te versturen. Maar er kan ook informatie"]
[null,"     naar MS-project worden verstuurd, zodat er een planning kan worden gegenereerd."]
[]
[]
[]
[null,"Het systeem"]
[]
[null,"Nu is er voor een Bouwblok van grondgebonden woningen een VBA-module opgesteld, maar dit is natuurlijk voor elk willekeurig"]
[null,"systeem mogelijk. Als er maar een paar regels, voorwaarden, uitgangspunten zijn en het schrijven van VBA-code kan beginnen."]
[null,"Iedereen heeft in zijn/haar werk wel iets dat met enige regelmaat wordt gedaan. Het opstellen van een gewichtsberekening"]
[null,"voor woningen, het dimensioneren van een speciale poerconstructie, een houten kapconstructie, prefab garageboxen, fundering"]
[null,"voor geluidsschermen, het genereren van een planning op basis van een calculatie, het opstellen van een offerte woningbouw"]
[null,"project met grondgebonden woningen, een bouwsysteem, een funderingssysteem, enz. "]
[]
[]
[null,"Excel ?"]
[]
[null,"Het is niet nodig om Excel te gebruiken. Dergelijke VBA-modules kunnen op exact dezelfde wijze in Word worden gemaakt, of"]
[null,"in Powerpoint, Outlook enz. Men kan zelfs overstappen naar een andere programmeertaal. De reden voor VBA. Het is lekker"]
[null,"makkelijk, geen investeringen, eenvoudige aansluiting op Microsoft applicaties en uitwisseling mogelijk tussen de applicaties."]
[null,"De module \"Woning Bouwblok Generator\" kan eenvoudig in Word worden verwerkt. Dit is hier heel eenvoudig, omdat"]
[null,"er geen gebruik is gemaakt van Excel. Er wordt geen enkele data uit Excel gebruikt. Dit is prima mogelijk, maar zeker niet "]
[null,"noodzakelijk. "]
[null,"Dus modules schrijven in VBA geeft de mogelijkheid om dingen te doen in Excel, maar (later)  ook in Word, Outlook, Project enz."]
[null,"zonder dat een andere programeertaal noodzakelijk is. "]
[null,"Tevens is VBA erg eenvoudig te leren en met enige ervaring is de overstap naar een andere programeertaal relatief eenvoudig,"]
[null,"indien dit wenselijk zou zijn. Het is niet nodig om software engineer te worden, te leren. Het gaat er immers om om eenvoudige"]
[null,"en kleine stukjes software te schrijven. De grote kracht zit in de eenvoud. Keep it simple."]

{"sheet":"Hulp","index":2,"n_rows":262,"n_cols":19,"rows_kept":262,"cut":false,"hidden":false,"merged":[]}
[]
[null,null,null,"Project:",{"$f":"Project","v":"Automatisering van een (bouw)systeem"},null,null,null,null,"Versie:",{"$f":"Versie","v":"1.00"}]
[null,null,null,"Onderdeel:",{"$f":"Onderdeel","v":"Woning Bouwblok generator"}]
[null,null,null,"Datum:",{"$f":"Datum","v":"2020-03-05"}]
[]
[null,null,null,null,null,"Gebruik van verschillende fonts",null,null,null,null,null,null,null,null,"Gebruik van de Excelfunctie \"Teken\""]
[null,null,null,null,null,"Calibri","Symbol","Wingdings","Wingdings2","Wingdings3","MT Extra","Font","Font"]
[null,null,null,null,null,"a","a","a","a","a","a","a","a",null,1,{"$f":"CHAR(O8)","v":"\u0001"}]
[null,null,null,null,null,"b","b","b","b","b","b","b","b",null,2,{"$f":"CHAR(O9)","v":"\u0002"},null,null,"Naast liggende kolommen kunnen worden gebruikt bij het opstellen van VBA code die"]
[null,null,null,null,null,"c","c","c","c","c","c","c","c",null,3,"\u0003",null,null,"specifieke teksten moeten genereren. Daarbij kan gebruik worden gemaakt van "]
[null,null,null,null,null,"d","d","d","d","d","d","d","d",null,4,"\u0004",null,null,"verschillende fonts en tekensets binnen Excel, zoals hiernaast weergegeven."]
[null,null,null,null,null,"e","e","e","e","e","e","e","e",null,5,"\u0005"]
[null,null,null,null,null,"f","f","f","f","f","f","f","f",null,6,"\u0006"]
[null,null,null,null,null,"g","g","g","g","g","g","g","g",null,7,"\u0007"]
[null,null,null,null,null,"h","h","h","h","h","h","h","h",null,8,"\b"]
[null,null,null,null,null,"i","i","i","i","i","i","i","i",null,9,"\t"]
[null,null,null,null,null,"j","j","j","j","j","j","j","j",null,10,"\n"]
[null,null,null,null,null,"k","k","k","k","k","k","k","k",null,11,"\u000b"]
[null,null,null,null,null,"l","l","l","l","l","l","l","l",null,12,"\f"]
[null,null,null,null,null,"m","m","m","m","m","m","m","m",null,13,"\r"]
[null,null,null,null,null,"n","n","n","n","n","n","n","n",null,14,"\u000e"]
[null,null,null,null,null,"o","o","o","o","o","o","o","o",null,15,"\u000f"]
[null,null,null,null,null,"p","p","p","p","p","p","p","p",null,16,"\u0010"]
[null,null,null,null,null,"q","q","q","q","q","q","q","q",null,17,"\u0011"]
[null,null,null,null,null,"r","r","r","r","r","r","r","r",null,18,"\u0012"]
[null,null,null,null,null,"s","s","s","s","s","s","s","s",null,19,"\u0013"]
[null,null,null,null,null,"t","t","t","t","t","t","t","t",null,20,"\u0014"]
[null,null,null,null,null,"u","u","u","u","u","u","u","u",null,21,"\u0015"]
[null,null,null,null,null,"v","v","v","v","v","v","v","v",null,22,"\u0016"]
[null,null,null,null,null,"w","w","w","w","w","w","w","w",null,23,"\u0017"]
[null,null,null,null,null,"x","x","x","x","x","x","x","x",null,24,"\u0018"]
[null,null,null,null,null,"y","y","y","y","y","y","y","y",null,25,"\u0019"]
[null,null,null,null,null,"z","z","z","z","z","z","z","z",null,26,"\u001a"]
[null,null,null,null,null,"A","A","A","A","A","A","A","A",null,27,"\u001b"]
[null,null,null,null,null,"B","B","B","B","B","B","B","B",null,28,"\u001c"]
[null,null,null,null,null,"C","C","C","C","C","C","C","C",null,29,"\u001d"]
[null,null,null,null,null,"D","D","D","D","D","D","D","D",null,30,"\u001e"]
[null,null,null,null,null,"E","E","E","E","E","E","E","E",null,31,"\u001f"]
[null,null,null,null,null,"F","F","F","F","F","F","F","F",null,32," "]
[null,null,null,null,null,"G","G","G","G","G","G","G","G",null,33,"!"]
[null,null,null,null,null,"H","H","H","H","H","H","H","H",null,34,"\""]
[null,null,null,null,null,"I","I","I","I","I","I","I","I",null,35,"#"]
[null,null,null,null,null,"J","J","J","J","J","J","J","J",null,36,"$"]
[null,null,null,null,null,"K","K","K","K","K","K","K","K",null,37,"%"]
[null,null,null,null,null,"L","L","L","L","L","L","L","L",null,38,"&"]
[null,null,null,null,null,"M","M","M","M","M","M","M","M",null,39,"'"]
[null,null,null,null,null,"N","N","N","N","N","N","N","N",null,40,"("]
[null,null,null,null,null,"O","O","O","O","O","O","O","O",null,41,")"]
[null,null,null,null,null,"P","P","P","P","P","P","P","P",null,42,"*"]
[null,null,null,null,null,"Q","Q","Q","Q","Q","Q","Q","Q",null,43,"+"]
[null,null,null,null,null,"R","R","R","R","R","R","R","R",null,44,","]
[null,null,null,null,null,"S","S","S","S","S","S","S","S",null,45,"-"]
[null,null,null,null,null,"T","T","T","T","T","T","T","T",null,46,"."]
[null,null,null,null,null,"U","U","U","U","U","U","U","U",null,47,"/"]
[null,null,null,null,null,"V","V","V","V","V","V","V","V",null,48,"0"]
[null,null,null,null,null,"W","W","W","W","W","W","W","W",null,49,"1"]
[null,null,null,null,null,"X","X","X","X","X","X","X","X",null,50,"2"]
[null,null,null,null,null,"Y","Y","Y","Y","Y","Y","Y","Y",null,51,"3"]
[null,null,null,null,null,"Z","Z","Z","Z","Z","Z","Z","Z",null,52,"4"]
[null,null,null,null,null,0,0,0,0,0,0,0,0,null,53,"5"]
[null,null,null,null,null,1,1,1,1,1,1,1,1,null,54,"6"]
[null,null,null,null,null,2,2,2,2,2,2,2,2,null,55,"7"]
[null,null,null,null,null,3,3,3,3,3,3,3,3,null,56,"8"]
[null,null,null,null,null,4,4,4,4,4,4,4,4,null,57,"9"]
[null,null,null,null,null,5,5,5,5,5,5,5,5,null,58,":"]
[null,null,null,null,null,6,6,6,6,6,6,6,6,null,59,";"]
[null,null,null,null,null,7,7,7,7,7,7,7,7,null,60,"<"]
[null,null,null,null,null,8,8,8,8,8,8,8,8,null,61,"="]
[null,null,null,null,null,9,9,9,9,9,9,9,9,null,62,">"]
[null,null,null,null,null,0,0,0,0,0,0,0,0,null,63,"?"]
[null,null,null,null,null,"`","`","`","`","`","`","`","`",null,64,"@"]
[null,null,null,null,null,"~","~","~","~","~","~","~","~",null,65,"A"]
[null,null,null,null,null,"@","@","@","@","@","@","@","@",null,66,{"$f":"CHAR(O73)","v":"B"}]
[null,null,null,null,null,"#","#","#","#","#","#","#","#",null,67,"C"]
[null,null,null,null,null,"$","$","$","$","$","$","$","$",null,68,"D"]
[null,null,null,null,null,"%","%","%","%","%","%","%","%",null,69,"E"]
[null,null,null,null,null,"^","^","^","^","^","^","^","^",null,70,"F"]
[null,null,null,null,null,"&","&","&","&","&","&","&","&",null,71,"G"]
[null,null,null,null,null,"*","*","*","*","*","*","*","*",null,72,"H"]
[null,null,null,null,null,"(","(","(","(","(","(","(","(",null,73,"I"]
[null,null,null,null,null,")",")",")",")",")",")",")",")",null,74,"J"]
[null,null,null,null,null,"_","_","_","_","_","_","_","_",null,75,"K"]
[null,null,null,null,null,"-","-","-","-","-","-","-","-",null,76,"L"]
[null,null,null,null,null,"+","+","+","+","+","+","+","+",null,77,"M"]
[null,null,null,null,null,"=","=","=","=","=","=","=","=",null,78,"N"]
[null,null,null,null,null,"[","[","[","[","[","[","[","[",null,79,"O"]
[null,null,null,null,null,"]","]","]","]","]","]","]","]",null,80,"P"]
[null,null,null,null,null,"{","{","{","{","{","{","{","{",null,81,"Q"]
[null,null,null,null,null,"}","}","}","}","}","}","}","}",null,82,"R"]
[null,null,null,null,null,"\\","\\","\\","\\","\\","\\","\\","\\",null,83,"S"]
[null,null,null,null,null,"|","|","|","|","|","|","|","|",null,84,"T"]
[null,null,null,null,null,";",";",";",";",";",";",";",";",null,85,"U"]
[null,null,null,null,null,":",":",":",":",":",":",":",":",null,86,"V"]
[null,null,null,null,null,"'","'","'","'","'","'","'","'",null,87,"W"]
[null,null,null,null,null,"\"\"","\"\"","\"\"","\"\"","\"\"","\"\"","\"\"","\"\"",null,88,"X"]
[null,null,null,null,null,",",",",",",",",",",",",",",",",null,89,"Y"]
[null,null,null,null,null,"<","<","<","<","<","<","<","<",null,90,"Z"]
[null,null,null,null,null,".",".",".",".",".",".",".",".",null,91,"["]
[null,null,null,null,null,">",">",">",">",">",">",">",">",null,92,"\\"]
[null,null,null,null,null,"?","?","?","?","?","?","?","?",null,93,"]"]
[null,null,null,null,null,null,null,null,null,null,null,null,null,null,94,"^"]
[null,null,null,null,null,null,null,null,null,null,null,null,null,null,95,"_"]
[null,null,null,null,null,null,null,null,null,null,null,null,null,null,96,"`"]
[null,null,null,null,null,null,null,null,null,null,null,null,null,null,97,"a"]
[null,null,null,null,null,null,null,null,null,null,null,null,null,null,98,"b"]
[null,null,null,null,null,null,null,null,null,null,null,null,null,null,99,"c"]
[null,null,null,null,null,null,null,null,null,null,null,null,null,null,100,"d"]
[null,null,null,null,null,null,null,null,null,null,null,null,null,null,101,"e"]
[null,null,null,null,null,null,null,null,null,null,null,null,null,null,102,"f"]
[null,null,null,null,null,null,null,null,null,null,null,null,null,null,103,"g"]
[null,null,null,null,null,null,null,null,null,null,null,null,null,null,104,"h"]
[null,null,null,null,null,null,null,null,null,null,null,null,null,null,105,"i"]
[null,null,null,null,null,null,null,null,null,null,null,null,null,null,106,"j"]
[null,null,null,null,null,null,null,null,null,null,null,null,null,null,107,"k"]
[null,null,null,null,null,null,null,null,null,null,null,null,null,null,108,"l"]
[null,null,null,null,null,null,null,null,null,null,null,null,null,null,109,"m"]
[null,null,null,null,null,null,null,null,null,null,null,null,null,null,110,"n"]
[null,null,null,null,null,null,null,null,null,null,null,null,null,null,111,"o"]
[null,null,null,null,null,null,null,null,null,null,null,null,null,null,112,"p"]
[null,null,null,null,null,null,null,null,null,null,null,null,null,null,113,"q"]
[null,null,null,null,null,null,null,null,null,null,null,null,null,null,114,"r"]
[null,null,null,null,null,null,null,null,null,null,null,null,null,null,115,"s"]
[null,null,null,null,null,null,null,null,null,null,null,null,null,null,116,"t"]
[null,null,null,null,null,null,null,null,null,null,null,null,null,null,117,"u"]
[null,null,null,null,null,null,null,null,null,null,null,null,null,null,118,"v"]
[null,null,null,null,null,null,null,null,null,null,null,null,null,null,119,"w"]
[null,null,null,null,null,null,null,null,null,null,null,null,null,null,120,"x"]
[null,null,null,null,null,null,null,null,null,null,null,null,null,null,121,"y"]
[null,null,null,null,null,null,null,null,null,null,null,null,null,null,122,"z"]
[null,null,null,null,null,null,null,null,null,null,null,null,null,null,123,"{"]
[null,null,null,null,null,null,null,null,null,null,null,null,null,null,124,"|"]
[null,null,null,null,null,null,null,null,null,null,null,null,null,null,125,"}"]
[null,null,null,null,null,null,null,null,null,null,null,null,null,null,126,"~"]
[null,null,null,null,null,null,null,null,null,null,null,null,null,null,127,"\u007f"]
[null,null,null,null,null,null,null,null,null,null,null,null,null,null,128,"€"]
[null,null,null,null,null,null,null,null,null,null,null,null,null,null,129,"\u0081"]
[null,null,null,null,null,null,null,null,null,null,null,null,null,null,130,{"$f":"CHAR(O137)","v":"‚"}]
[null,null,null,null,null,null,null,null,null,null,null,null,null,null,131,"ƒ"]
[null,null,null,null,null,null,null,null,null,null,null,null,null,null,132,"„"]
[null,null,null,null,null,null,null,null,null,null,null,null,null,null,133,"…"]
[null,null,null,null,null,null,null,null,null,null,null,null,null,null,134,"†"]
[null,null,null,null,null,null,null,null,null,null,null,null,null,null,135,"‡"]
[null,null,null,null,null,null,null,null,null,null,null,null,null,null,136,"ˆ"]
[null,null,null,null,null,null,null,null,null,null,null,null,null,null,137,"‰"]
[null,null,null,null,null,null,null,null,null,null,null,null,null,null,138,"Š"]
[null,null,null,null,null,null,null,null,null,null,null,null,null,null,139,"‹"]
[null,null,null,null,null,null,null,null,null,null,null,null,null,null,140,"Œ"]
[null,null,null,null,null,null,null,null,null,null,null,null,null,null,141,"\u008d"]
[null,null,null,null,null,null,null,null,null,null,null,null,null,null,142,"Ž"]
[null,null,null,null,null,null,null,null,null,null,null,null,null,null,143,"\u008f"]
[null,null,null,null,null,null,null,null,null,null,null,null,null,null,144,"\u0090"]
[null,null,null,null,null,null,null,null,null,null,null,null,null,null,145,"‘"]
[null,null,null,null,null,null,null,null,null,null,null,null,null,null,146,"’"]
[null,null,null,null,null,null,null,null,null,null,null,null,null,null,147,"“"]
[null,null,null,null,null,null,null,null,null,null,null,null,null,null,148,"”"]
[null,null,null,null,null,null,null,null,null,null,null,null,null,null,149,"•"]
[null,null,null,null,null,null,null,null,null,null,null,null,null,null,150,"–"]
[null,null,null,null,null,null,null,null,null,null,null,null,null,null,151,"—"]
[null,null,null,null,null,null,null,null,null,null,null,null,null,null,152,"˜"]
[null,null,null,null,null,null,null,null,null,null,null,null,null,null,153,"™"]
[null,null,null,null,null,null,null,null,null,null,null,null,null,null,154,"š"]
[null,null,null,null,null,null,null,null,null,null,null,null,null,null,155,"›"]
[null,null,null,null,null,null,null,null,null,null,null,null,null,null,156,"œ"]
[null,null,null,null,null,null,null,null,null,null,null,null,null,null,157,"\u009d"]
[null,null,null,null,null,null,null,null,null,null,null,null,null,null,158,"ž"]
[null,null,null,null,null,null,null,null,null,null,null,null,null,null,159,"Ÿ"]
[null,null,null,null,null,null,null,null,null,null,null,null,null,null,160," "]
[null,null,null,null,null,null,null,null,null,null,null,null,null,null,161,"¡"]
[null,null,null,null,null,null,null,null,null,null,null,null,null,null,162,"¢"]
[null,null,null,null,null,null,null,null,null,null,null,null,null,null,163,"£"]
[null,null,null,null,null,null,null,null,null,null,null,null,null,null,164,"¤"]
[null,null,null,null,null,null,null,null,null,null,null,null,null,null,165,"¥"]
[null,null,null,null,null,null,null,null,null,null,null,null,null,null,166,"¦"]
[null,null,null,null,null,null,null,null,null,null,null,null,null,null,167,"§"]
[null,null,null,null,null,null,null,null,null,null,null,null,null,null,168,"¨"]
[null,null,null,null,null,null,null,null,null,null,null,null,null,null,169,"©"]
[null,null,null,null,null,null,null,null,null,null,null,null,null,null,170,"ª"]
[null,null,null,null,null,null,null,null,null,null,null,null,null,null,171,"«"]
[null,null,null,null,null,null,null,null,null,null,null,null,null,null,172,"¬"]
[null,null,null,null,null,null,null,null,null,null,null,null,null,null,173,"­"]
[null,null,null,null,null,null,null,null,null,null,null,null,null,null,174,"®"]
[null,null,null,null,null,null,null,null,null,null,null,null,null,null,175,"¯"]
[null,null,null,null,null,null,null,null,null,null,null,null,null,null,176,"°"]
[null,null,null,null,null,null,null,null,null,null,null,null,null,null,177,"±"]
[null,null,null,null,null,null,null,null,null,null,null,null,null,null,178,"²"]
[null,null,null,null,null,null,null,null,null,null,null,null,null,null,179,"³"]
[null,null,null,null,null,null,null,null,null,null,null,null,null,null,180,"´"]
[null,null,null,null,null,null,null,null,null,null,null,null,null,null,181,"µ"]
[null,null,null,null,null,null,null,null,null,null,null,null,null,null,182,"¶"]
[null,null,null,null,null,null,null,null,null,null,null,null,null,null,183,"·"]
[null,null,null,null,null,null,null,null,null,null,null,null,null,null,184,"¸"]
[null,null,null,null,null,null,null,null,null,null,null,null,null,null,185,"¹"]
[null,null,null,null,null,null,null,null,null,null,null,null,null,null,186,"º"]
[null,null,null,null,null,null,null,null,null,null,null,null,null,null,187,"»"]
[null,null,null,null,null,null,null,null,null,null,null,null,null,null,188,"¼"]
[null,null,null,null,null,null,null,null,null,null,null,null,null,null,189,"½"]
[null,null,null,null,null,null,null,null,null,null,null,null,null,null,190,"¾"]
[null,null,null,null,null,null,null,null,null,null,null,null,null,null,191,"¿"]
[null,null,null,null,null,null,null,null,null,null,null,null,null,null,192,"À"]
[null,null,null,null,null,null,null,null,null,null,null,null,null,null,193,"Á"]
[null,null,null,null,null,null,null,null,null,null,null,null,null,null,194,{"$f":"CHAR(O201)","v":"Â"}]
[null,null,null,null,null,null,null,null,null,null,null,null,null,null,195,"Ã"]
[null,null,null,null,null,null,null,null,null,null,null,null,null,null,196,"Ä"]
[null,null,null,null,null,null,null,null,null,null,null,null,null,null,197,"Å"]
[null,null,null,null,null,null,null,null,null,null,null,null,null,null,198,"Æ"]
[null,null,null,null,null,null,null,null,null,null,null,null,null,null,199,"Ç"]
[null,null,null,null,null,null,null,null,null,null,null,null,null,null,200,"È"]
[null,null,null,null,null,null,null,null,null,null,null,null,null,null,201,"É"]
[null,null,null,null,null,null,null,null,null,null,null,null,null,null,202,"Ê"]
[null,null,null,null,null,null,null,null,null,null,null,null,null,null,203,"Ë"]
[null,null,null,null,null,null,null,null,null,null,null,null,null,null,204,"Ì"]
[null,null,null,null,null,null,null,null,null,null,null,null,null,null,205,"Í"]
[null,null,null,null,null,null,null,null,null,null,null,null,null,null,206,"Î"]
[null,null,null,null,null,null,null,null,null,null,null,null,null,null,207,"Ï"]
[null,null,null,null,null,null,null,null,null,null,null,null,null,null,208,"Ð"]
[null,null,null,null,null,null,null,null,null,null,null,null,null,null,209,"Ñ"]
[null,null,null,null,null,null,null,null,null,null,null,null,null,null,210,"Ò"]
[null,null,null,null,null,null,null,null,null,null,null,null,null,null,211,"Ó"]
[null,null,null,null,null,null,null,null,null,null,null,null,null,null,212,"Ô"]
[null,null,null,null,null,null,null,null,null,null,null,null,null,null,213,"Õ"]
[null,null,null,null,null,null,null,null,null,null,null,null,null,null,214,"Ö"]
[null,null,null,null,null,null,null,null,null,null,null,null,null,null,215,"×"]
[null,null,null,null,null,null,null,null,null,null,null,null,null,null,216,"Ø"]
[null,null,null,null,null,null,null,null,null,null,null,null,null,null,217,"Ù"]
[null,null,null,null,null,null,null,null,null,null,null,null,null,null,218,"Ú"]
[null,null,null,null,null,null,null,null,null,null,null,null,null,null,219,"Û"]
[null,null,null,null,null,null,null,null,null,null,null,null,null,null,220,"Ü"]
[null,null,null,null,null,null,null,null,null,null,null,null,null,null,221,"Ý"]
[null,null,null,null,null,null,null,null,null,null,null,null,null,null,222,"Þ"]
[null,null,null,null,null,null,null,null,null,null,null,null,null,null,223,"ß"]
[null,null,null,null,null,null,null,null,null,null,null,null,null,null,224,"à"]
[null,null,null,null,null,null,null,null,null,null,null,null,null,null,225,"á"]
[null,null,null,null,null,null,null,null,null,null,null,null,null,null,226,"â"]
[null,null,null,null,null,null,null,null,null,null,null,null,null,null,227,"ã"]
[null,null,null,null,null,null,null,null,null,null,null,null,null,null,228,"ä"]
[null,null,null,null,null,null,null,null,null,null,null,null,null,null,229,"å"]
[null,null,null,null,null,null,null,null,null,null,null,null,null,null,230,"æ"]
[null,null,null,null,null,null,null,null,null,null,null,null,null,null,231,"ç"]
[null,null,null,null,null,null,null,null,null,null,null,null,null,null,232,"è"]
[null,null,null,null,null,null,null,null,null,null,null,null,null,null,233,"é"]
[null,null,null,null,null,null,null,null,null,null,null,null,null,null,234,"ê"]
[null,null,null,null,null,null,null,null,null,null,null,null,null,null,235,"ë"]
[null,null,null,null,null,null,null,null,null,null,null,null,null,null,236,"ì"]
[null,null,null,null,null,null,null,null,null,null,null,null,null,null,237,"í"]
[null,null,null,null,null,null,null,null,null,null,null,null,null,null,238,"î"]
[null,null,null,null,null,null,null,null,null,null,null,null,null,null,239,"ï"]
[null,null,null,null,null,null,null,null,null,null,null,null,null,null,240,"ð"]
[null,null,null,null,null,null,null,null,null,null,null,null,null,null,241,"ñ"]
[null,null,null,null,null,null,null,null,null,null,null,null,null,null,242,"ò"]
[null,null,null,null,null,null,null,null,null,null,null,null,null,null,243,"ó"]
[null,null,null,null,null,null,null,null,null,null,null,null,null,null,244,"ô"]
[null,null,null,null,null,null,null,null,null,null,null,null,null,null,245,"õ"]
[null,null,null,null,null,null,null,null,null,null,null,null,null,null,246,"ö"]
[null,null,null,null,null,null,null,null,null,null,null,null,null,null,247,"÷"]
[null,null,null,null,null,null,null,null,null,null,null,null,null,null,248,"ø"]
[null,null,null,null,null,null,null,null,null,null,null,null,null,null,249,"ù"]
[null,null,null,null,null,null,null,null,null,null,null,null,null,null,250,"ú"]
[null,null,null,null,null,null,null,null,null,null,null,null,null,null,251,"û"]
[null,null,null,null,null,null,null,null,null,null,null,null,null,null,252,"ü"]
[null,null,null,null,null,null,null,null,null,null,null,null,null,null,253,"ý"]
[null,null,null,null,null,null,null,null,null,null,null,null,null,null,254,"þ"]
[null,null,null,null,null,null,null,null,null,null,null,null,null,null,255,"ÿ"]